fUSD/lending_fUSD_20260402
["ID","MTS","AMOUNT","RATE_DAILY","PERIOD"]
[419287168,1775113099526,-2100.0,0.00034995,120]
[419287169,1775113099580,-500.0,0.00034995,120]
[419287170,1775113099636,-500.0,0.00034995,120]
[419287171,1775113099695,-2100.0,0.00034995,120]
[419287172,1775113099753,-2100.0,0.00034995,120]
[419287173,1775113099808,-500.0,0.00034995,120]
[419287174,1775113099862,-2100.0,0.00034995,120]
[419287175,1775113099916,-500.0,0.00034995,120]
[419287176,1775113099969,-2100.0,0.00034995,120]
[419287177,1775113100022,-500.0,0.00034995,120]
[419287178,1775113100074,-2100.0,0.00034995,120]
[419287179,1775113100129,-500.0,0.00034995,120]
[419287180,1775113100180,-2100.0,0.00034995,120]
[419287181,1775113100230,-500.0,0.00034995,120]
[419287182,1775113100279,-500.0,0.00034995,120]
[419287183,1775113100328,-2100.0,0.00034995,120]
[419287184,1775113100378,-779.7033879,0.00034995,120]
[419287185,1775113100430,-2100.0,0.00034995,120]
[419287186,1775113100482,-2100.0,0.00034995,120]
[419287187,1775113100532,-2100.0,0.00034995,120]
[419287188,1775113100581,-2100.0,0.00034995,120]
[419287189,1775113100633,-2100.0,0.00034995,120]
[419287190,1775113100684,-2100.0,0.00034995,120]
[419287191,1775113100735,-2100.0,0.00034995,120]
[419287192,1775113100785,-2100.0,0.00034995,120]
[419287193,1775113100835,-2100.0,0.00034995,120]
[419287194,1775113100887,-2100.0,0.00034995,120]
[419287195,1775113100940,-3374.1957002,0.00034995,120]
[419287196,1775113100992,-398.5682229,0.00034995,120]
[419287197,1775113101043,-500.0,0.00034995,120]
[419287198,1775113101092,-500.0,0.00034995,120]
[419287199,1775113101142,-500.0,0.00034995,120]
[419287200,1775113101191,-649.0337083,0.00034995,120]
[419287201,1775113101241,-500.0,0.00034995,120]
[419287202,1775113101290,-500.0,0.00034995,120]
[419287203,1775113101342,-500.0,0.00034995,120]
[419287204,1775113101394,-500.0,0.00034995,120]
[419287205,1775113101443,-500.0,0.00034995,120]
[419287206,1775113101492,-922.1155573,0.00034995,120]
[419287207,1775113101887,-475.94067081,0.00035,120]
[419287208,1775113101952,-2399.94,0.00035,120]
[419287209,1775113102005,-1599.96,0.00035,120]
[419287210,1775113102058,-1146.578,0.000351,87]
[419287211,1775113102111,-151.0,0.00035339,30]
[419287212,1775113102159,-343.0,0.00035339,30]
[419287213,1775113102208,-446.0,0.00035339,30]
[419287214,1775113102258,-417.0,0.00035344,30]
[419287215,1775113102307,-200.0,0.00035344,30]
[419287216,1775113102355,-1929.8,0.000354,30]
[419287217,1775113102403,-1641.26,0.000354,30]
[419287218,1775113102450,-1509.66,0.000354,30]
[419287219,1775113102496,-340.61864835,0.00035616,120]
[419287220,1775113102545,-2691.0,0.00035616,120]
[419287221,1775113102599,-500.0,0.00035715,120]
[419287222,1775113102648,-2128.56,0.00035797,30]
[419287223,1775113102697,-373.3,0.00035797,30]
[419287224,1775113102745,-904.83,0.00035797,30]
[419287225,1775113102794,-4027.83,0.00035797,30]
[419287226,1775113102843,-432.3,0.00035797,30]
[419287227,1775113102893,-475.94067081,0.00036,120]
[419287228,1775113102941,-2399.94,0.00036,120]
[419287229,1775113102988,-1599.96,0.00036,120]
[419287230,1775113103038,-211.4725,0.00036102,30]
[419287231,1775113103087,-211.4725,0.00036107,30]
[419287232,1775113103135,-1292.2994,0.000363,92]
[419287233,1775113103185,-151.0,0.00036339,30]
[419287234,1775113103233,-343.0,0.00036339,30]
[419287235,1775113103281,-446.0,0.00036339,30]
[419287236,1775113103328,-417.0,0.00036344,30]
[419287237,1775113103376,-200.0,0.00036344,30]
[419287238,1775113103422,-1929.8,0.000365,30]
[419287239,1775113103469,-1641.26,0.000366,30]
[419287240,1775113103515,-1509.66,0.000366,30]
[419287241,1775113103563,-287.18,0.000368,30]
[419287242,1775113103611,-150.46,0.00036986,30]
[419287243,1775113103659,-1299.86828,0.000371,120]
[419287244,1775113103707,-2399.94,0.000371,120]
[419287245,1775113103754,-1599.96,0.000371,120]
[419287246,1775113103802,-1214.48526992,0.000372,120]
[419287247,1775113103850,-1214.4852699,0.000372,120]
[419287248,1775113103898,-1214.4852699,0.000372,120]
[419287249,1775113103945,-500.0,0.00037227,120]
[419287250,1775113103992,-151.0,0.00037339,30]
[419287251,1775113104041,-343.0,0.00037339,30]
[419287252,1775113104088,-446.0,0.00037339,30]
[419287253,1775113104135,-417.0,0.00037344,30]
[419287254,1775113104180,-200.0,0.00037344,30]
[419287255,1775113104228,-1456.541,0.000374,97]
[419287256,1775113104276,-1041.1,0.000375,120]
[419287257,1775113104323,-1214.4852699,0.00037525,120]
[419287258,1775113104368,-1929.8,0.000377,30]
[419287259,1775113104414,-1318.0,0.00038,30]
[419287260,1775113104460,-332.93735569,0.000381,33]
[419287261,1775113104507,-1641.26,0.000381,30]
[419287262,1775113104552,-1509.66,0.000381,30]
[419287263,1775113104597,-2399.94,0.000382,120]
[419287264,1775113104646,-1599.96,0.000382,120]
[419287265,1775113104694,-151.0,0.00038339,30]
[419287266,1775113104741,-343.0,0.00038339,30]
[419287267,1775113104791,-446.0,0.00038339,30]
[419287268,1775113104840,-417.0,0.00038344,30]
[419287269,1775113104890,-200.0,0.00038344,30]
[419287270,1775113104940,-350.0,0.00038356,120]
[419287271,1775113104989,-3108.0,0.000385,30]
[419287272,1775113105039,-200.0,0.000386,30]
[419287273,1775113105092,-1641.6564,0.000386,102]
[419287274,1775113105143,-500.0,0.000387,120]
[419287275,1775113105193,-500.0,0.00038739,120]
[419287276,1775113105242,-103782.79827298,0.0003888,60]
[419287277,1775113105291,-151.0,0.0003888,120]
[419287278,1775113105340,-2168.78859873,0.000389,30]
[419287279,1775113105388,-1929.8,0.000389,30]
[419287280,1775113105437,-350.0,0.00038904,120]
[419287281,1775113105487,-600.0,0.00039,120]
[419287282,1775113105535,-1641.26,0.000391,30]
[419287283,1775113105586,-1509.66,0.000391,30]
[419287284,1775113105636,-328.2,0.000392,30]
[419287285,1775113105686,-151.0,0.00039339,30]
[419287286,1775113105736,-343.0,0.00039339,30]
[419287287,1775113105785,-446.0,0.00039339,30]
[419287288,1775113105837,-417.0,0.00039344,30]
[419287289,1775113105886,-200.0,0.00039344,30]
[419287290,1775113105936,-2399.94,0.000394,120]
[419287291,1775113105986,-1599.96,0.000394,120]
[419287292,1775113106039,-350.0,0.00039452,120]
[419287293,1775113106090,-500.0,0.000395,120]
[419287294,1775113106140,-2003.68600071,0.00039654,31]
[419287295,1775113106193,-1850.2985,0.000397,108]
[419287296,1775113106240,-250.0,0.00039804,65]
[419287297,1775113106289,-10007.7547077,0.0003988,120]
[419287298,1775113106336,-6000.0,0.000399,120]
[419287299,1775113106384,-1929.8,0.000399,30]
[419287300,1775113106432,-150.46,0.00039922,30]
[419287301,1775113106480,-350.0,0.0004,120]
[419287302,1775113106527,-250.0,0.0004,120]
[419287303,1775113106576,-1000.0,0.0004,30]
[419287304,1775113106626,-152.0,0.0004,120]
[419287305,1775113106676,-154.0,0.0004,120]
[419287306,1775113106727,-158.63258342,0.0004,30]
[419287307,1775113106778,-151.96612543,0.0004,120]
[419287308,1775113106827,-2000.0,0.0004,120]
[419287309,1775113106874,-935.0,0.0004,120]
[419287310,1775113106924,-600.0,0.0004,90]
[419287311,1775113106974,-196.61361875,0.0004,120]
[419287312,1775113107025,-20000.0,0.0004,30]
[419287313,1775113107074,-186.49,0.0004,120]
[419287314,1775113107123,-1641.26,0.000402,30]
[419287315,1775113107171,-1509.66,0.000402,30]
[419287316,1775113107220,-511.438258,0.00040251,120]
[419287317,1775113107269,-6618.73779549,0.000403,120]
[419287318,1775113107317,-151.0,0.00040339,30]
[419287319,1775113107364,-343.0,0.00040339,30]
[419287320,1775113107411,-446.0,0.00040339,30]
[419287321,1775113107457,-417.0,0.00040344,30]
[419287322,1775113107504,-200.0,0.00040344,30]
[419287323,1775113107551,-2399.94,0.000405,120]
[419287324,1775113107811,-1599.96,0.000405,120]
[419287325,1775113107862,-350.0,0.00040547,120]
[419287326,1775113107914,-12523.70987299,0.0004067,120]
[419287327,1775113107965,-3612.0052647,0.000409,120]
[419287328,1775113108018,-6000.0,0.000409,120]
[419287329,1775113108073,-2085.4576,0.000409,114]
[419287330,1775113108128,-132373.0,0.0004095,60]
[419287331,1775113108181,-1982.98,0.00041,120]
[419287332,1775113108234,-545.31745342,0.00041,30]
[419287333,1775113108287,-152.0,0.00041,120]
[419287334,1775113108338,-1010.04096567,0.00041,120]
[419287335,1775113108389,-3054.0,0.00041,30]
[419287336,1775113108441,-1002.0,0.00041,30]
[419287337,1775113108492,-801.0,0.00041,30]
[419287338,1775113108542,-392.68,0.00041,120]
[419287339,1775113108592,-1929.8,0.00041,30]
[419287340,1775113108646,-934.24352531,0.00041027,120]
[419287341,1775113108699,-1634.5,0.00041068,120]
[419287342,1775113108752,-3399.9,0.00041068,120]
[419287343,1775113108805,-3105.9,0.00041068,120]
[419287344,1775113108857,-1736.7,0.00041068,120]
[419287345,1775113108907,-1533.0,0.00041068,120]
[419287346,1775113108959,-1584.8,0.00041068,120]
[419287347,1775113109013,-3337.6,0.00041068,120]
[419287348,1775113109066,-3255.7,0.00041068,120]
[419287349,1775113109116,-2795.8,0.00041068,120]
[419287350,1775113109165,-2387.0,0.00041068,120]
[419287351,1775113109214,-2997.4,0.00041068,120]
[419287352,1775113109262,-2512.3,0.00041068,120]
[419287353,1775113109311,-1421.0,0.00041068,120]
[419287354,1775113109359,-2750.3,0.00041068,120]
[419287355,1775113109407,-2222.5,0.00041068,120]
[419287356,1775113109455,-3423.7,0.00041068,120]
[419287357,1775113109505,-2002.0,0.00041068,120]
[419287358,1775113109555,-2651.6,0.00041068,120]
[419287359,1775113109605,-1899.8,0.00041068,120]
[419287360,1775113109657,-1449.0,0.00041068,120]
[419287361,1775113109707,-1957.2,0.00041068,120]
[419287362,1775113109756,-1555.4,0.00041068,120]
[419287363,1775113109805,-2662.8,0.00041068,120]
[419287364,1775113109854,-1459.5,0.00041068,120]
[419287365,1775113109901,-2364.6,0.00041068,120]
[419287366,1775113109950,-2737.7,0.00041068,120]
[419287367,1775113109999,-1970.60973342,0.00041068,120]
[419287368,1775113110048,-350.0,0.00041095,120]
[419287369,1775113110097,-500.0,0.00041095,120]
[419287370,1775113110147,-231.0,0.00041096,30]
[419287371,1775113110197,-159.0,0.00041096,30]
[419287372,1775113110244,-2296.948,0.000411,30]
[419287373,1775113110292,-2296.948,0.000411,120]
[419287374,1775113110342,-2296.94,0.000411,30]
[419287375,1775113110391,-1047.19504675,0.00041131,120]
[419287376,1775113110439,-4717.43712543,0.0004118,120]
[419287377,1775113110487,-150.0,0.00041188,120]
[419287378,1775113110536,-154.0,0.000412,120]
[419287379,1775113110585,-1641.26,0.000412,30]
[419287380,1775113110636,-1509.66,0.000412,30]
[419287381,1775113110688,-1047.19504676,0.00041571,120]
[419287382,1775113110739,-369.23,0.00041599,30]
[419287383,1775113110789,-350.0,0.00041643,120]
[419287384,1775113110840,-1596.42,0.00041695,120]
[419287385,1775113110891,-279.98,0.00041695,120]
[419287386,1775113110941,-678.62,0.00041695,120]
[419287387,1775113110993,-3020.87,0.00041695,120]
[419287388,1775113111044,-324.23,0.00041695,120]
[419287389,1775113111092,-200.0,0.00041715,120]
[419287390,1775113111140,-2399.94,0.000418,120]
[419287391,1775113111188,-1599.96,0.000418,120]
[419287392,1775113111238,-326.33635155,0.0004188,120]
[419287393,1775113111289,-152.0,0.000419,120]
[419287394,1775113111338,-6000.0,0.000419,120]
[419287395,1775113111388,-14995.2,0.00041999,30]
[419287396,1775113111436,-250.0,0.00042,120]
[419287397,1775113111484,-150.0,0.00042,120]
[419287398,1775113111534,-5070.0,0.00042,30]
[419287399,1775113111583,-1000.0,0.00042,30]
[419287400,1775113111632,-2149.74,0.00042,60]
[419287401,1775113111682,-500.0,0.00042,45]
[419287402,1775113111730,-500.0,0.00042,45]
[419287403,1775113111783,-500.0,0.00042,45]
[419287404,1775113111833,-500.0,0.00042,45]
[419287405,1775113111884,-500.0,0.00042,45]
[419287406,1775113111935,-500.0,0.00042,45]
[419287407,1775113111986,-500.0,0.00042,45]
[419287408,1775113112036,-500.0,0.00042,45]
[419287409,1775113112087,-500.0,0.00042,45]
[419287410,1775113112138,-500.0,0.00042,45]
[419287411,1775113112187,-500.0,0.00042,45]
[419287412,1775113112237,-500.0,0.00042,45]
[419287413,1775113112286,-500.0,0.00042,45]
[419287414,1775113112337,-500.0,0.00042,45]
[419287415,1775113112387,-500.0,0.00042,45]
[419287416,1775113112438,-500.0,0.00042,45]
[419287417,1775113112487,-500.0,0.00042,45]
[419287418,1775113112537,-500.0,0.00042,45]
[419287419,1775113112586,-500.0,0.00042,45]
[419287420,1775113112637,-500.0,0.00042,45]
[419287421,1775113112688,-500.0,0.00042,45]
[419287422,1775113112739,-500.0,0.00042,45]
[419287423,1775113112790,-500.0,0.00042,45]
[419287424,1775113112841,-500.0,0.00042,45]
[419287425,1775113112892,-1929.8,0.00042,30]
[419287426,1775113112945,-2350.5035,0.00042,120]
[419287427,1775113113002,-250.0,0.00042019,30]
[419287428,1775113113052,-250.0,0.00042019,30]
[419287429,1775113113104,-250.0,0.00042019,30]
[419287430,1775113113154,-250.0,0.00042019,30]
[419287431,1775113113206,-22004.60946359,0.00042143,120]
[419287432,1775113113258,-3653.92942651,0.0004218,120]
[419287433,1775113113309,-350.0,0.00042191,120]
[419287434,1775113113358,-500.0,0.00042191,120]
[419287435,1775113113408,-600.02853623,0.00042191,120]
[419287436,1775113113458,-177.54,0.000422,90]
[419287437,1775113113507,-350.0,0.00042299,120]
[419287438,1775113113556,-154.0,0.000423,120]
[419287439,1775113113847,-132373.0,0.000423,60]
[419287440,1775113113899,-500.0,0.00042465,120]
[419287441,1775113113950,-920.927026,0.00042466,120]
[419287442,1775113114001,-920.927026,0.00042466,120]
[419287443,1775113114052,-920.927026,0.00042466,120]
[419287444,1775113114102,-920.927026,0.00042466,120]
[419287445,1775113114152,-920.927026,0.00042466,120]
[419287446,1775113114201,-920.927026,0.00042466,120]
[419287447,1775113114250,-920.927026,0.00042466,120]
[419287448,1775113114299,-920.927026,0.00042466,120]
[419287449,1775113114348,-920.927026,0.00042466,120]
[419287450,1775113114396,-920.927026,0.00042466,120]
[419287451,1775113114443,-920.927026,0.00042466,120]
[419287452,1775113114491,-920.927026,0.00042466,120]
[419287453,1775113114541,-920.927026,0.00042466,120]
[419287454,1775113114590,-920.927026,0.00042466,120]
[419287455,1775113114640,-920.927026,0.00042466,120]
[419287456,1775113114690,-920.927026,0.00042466,120]
[419287457,1775113114740,-920.927026,0.00042466,120]
[419287458,1775113114790,-920.927026,0.00042466,120]
[419287459,1775113114842,-920.927026,0.00042466,120]
[419287460,1775113114896,-920.927022,0.00042466,120]
[419287461,1775113114948,-3152.0,0.00042466,120]
[419287462,1775113115002,-388.56476254,0.000425,108]
[419287463,1775113115053,-17518.9963,0.000425,120]
[419287464,1775113115106,-2474.01820596,0.000425,120]
[419287465,1775113115160,-257.0701597,0.000425,120]
[419287466,1775113115211,-3000.0,0.000425,30]
[419287467,1775113115261,-350.0,0.00042739,120]
[419287468,1775113115311,-1000.0,0.00042739,120]
[419287469,1775113115360,-350.0,0.00042847,120]
[419287470,1775113115410,-150.46,0.00042857,30]
[419287471,1775113115460,-5000.0,0.00042875,60]
[419287472,1775113115508,-10000.0,0.0004288,120]
[419287473,1775113115558,-5000.0,0.000429,120]
[419287474,1775113115608,-152.0,0.000429,120]
[419287475,1775113115658,-6000.0,0.000429,120]
[419287476,1775113115710,-1207.8434867,0.00043,120]
[419287477,1775113115762,-250.0,0.00043,120]
[419287478,1775113115812,-3000.0,0.00043,60]
[419287479,1775113115863,-10120.0,0.00043,120]
[419287480,1775113115913,-221.827336,0.00043,120]
[419287481,1775113115963,-2111.45,0.00043,30]
[419287482,1775113116014,-659.39,0.00043,120]
[419287483,1775113116065,-2283.45,0.00043,45]
[419287484,1775113116116,-7400.17,0.00043,45]
[419287485,1775113116168,-8318.36,0.00043,45]
[419287486,1775113116217,-666.59,0.00043,45]
[419287487,1775113116266,-1500.0,0.00043013,120]
[419287488,1775113116315,-238.64014836,0.00043199,120]
[419287489,1775113116364,-200.0,0.00043215,120]
[419287490,1775113116415,-250.0,0.00043233,94]
[419287491,1775113116465,-350.0,0.00043287,120]
[419287492,1775113116515,-500.0,0.00043287,120]
[419287493,1775113116563,-500.0,0.00043287,120]
[419287494,1775113116611,-500.0,0.00043287,120]
[419287495,1775113116662,-500.0,0.00043287,120]
[419287496,1775113116714,-500.0,0.00043287,120]
[419287497,1775113116765,-500.0,0.00043287,120]
[419287498,1775113116813,-500.0,0.00043287,120]
[419287499,1775113116863,-500.0,0.00043287,120]
[419287500,1775113116912,-500.0,0.00043287,120]
[419287501,1775113116961,-500.0,0.00043287,120]
[419287502,1775113117011,-500.0,0.00043287,120]
[419287503,1775113117062,-500.0,0.00043287,120]
[419287504,1775113117113,-500.0,0.00043287,120]
[419287505,1775113117164,-500.0,0.00043287,120]
[419287506,1775113117213,-500.0,0.00043287,120]
[419287507,1775113117262,-500.0,0.00043287,120]
[419287508,1775113117310,-500.0,0.00043287,120]
[419287509,1775113117359,-500.0,0.00043287,120]
[419287510,1775113117408,-500.0,0.00043287,120]
[419287511,1775113117456,-500.0,0.00043287,120]
[419287512,1775113117505,-500.0,0.00043287,120]
[419287513,1775113117557,-500.0,0.00043287,120]
[419287514,1775113117607,-500.0,0.00043287,120]
[419287515,1775113117657,-500.0,0.00043287,120]
[419287516,1775113117706,-377.77431641,0.00043287,120]
[419287517,1775113117757,-2000.0,0.00043287,120]
[419287518,1775113117807,-503.29012701,0.0004329,120]
[419287519,1775113117858,-350.0,0.00043395,120]
[419287520,1775113117908,-33515.36114033,0.000434,120]
[419287521,1775113117960,-169.89048842,0.000435,30]
[419287522,1775113118010,-154.0,0.000435,120]
[419287523,1775113118060,-856.88901214,0.000435,30]
[419287524,1775113118112,-775690.818353,0.000435,35]
[419287525,1775113118162,-120000.0,0.000435,30]
[419287526,1775113118210,-120000.0,0.000435,40]
[419287527,1775113118260,-120000.0,0.000435,45]
[419287528,1775113118310,-120000.0,0.000435,50]
[419287529,1775113118359,-150.0,0.000435,120]
[419287530,1775113118407,-300.0,0.000435,120]
[419287531,1775113118456,-2500.0,0.00043561,120]
[419287532,1775113118504,-934.24352531,0.00043627,120]
[419287533,1775113118557,-132373.0,0.0004365,60]
[419287534,1775113118608,-200.0,0.00043726,120]
[419287535,1775113118658,-294.92,0.00043726,120]
[419287536,1775113118708,-23039.63,0.00043778,60]
[419287537,1775113118760,-1000.0,0.000438,120]
[419287538,1775113118812,-359.0,0.00043808,120]
[419287539,1775113118865,-359.0,0.00043808,120]
[419287540,1775113118918,-359.0,0.00043808,120]
[419287541,1775113118971,-359.0,0.00043808,120]
[419287542,1775113119024,-359.0,0.00043808,120]
[419287543,1775113119076,-359.0,0.00043808,120]
[419287544,1775113119131,-359.0,0.00043808,120]
[419287545,1775113119183,-359.0,0.00043808,120]
[419287546,1775113119240,-359.0,0.00043808,120]
[419287547,1775113119292,-359.0,0.00043808,120]
[419287548,1775113119343,-359.0,0.00043808,120]
[419287549,1775113119393,-359.0,0.00043808,120]
[419287550,1775113119442,-359.0,0.00043808,120]
[419287551,1775113119492,-359.0,0.00043808,120]
[419287552,1775113119542,-359.0,0.00043808,120]
[419287553,1775113119590,-359.0,0.00043808,120]
[419287554,1775113119645,-359.0,0.00043808,120]
[419287555,1775113119980,-359.0,0.00043808,120]
[419287556,1775113120035,-359.0,0.00043808,120]
[419287557,1775113120087,-359.0,0.00043808,120]
[419287558,1775113120139,-359.0,0.00043808,120]
[419287559,1775113120188,-359.0,0.00043808,120]
[419287560,1775113120241,-359.0,0.00043808,120]
[419287561,1775113120290,-359.0,0.00043808,120]
[419287562,1775113120339,-359.0,0.00043808,120]
[419287563,1775113120388,-359.0,0.00043808,120]
[419287564,1775113120438,-359.0,0.00043808,120]
[419287565,1775113120489,-359.0,0.00043808,120]
[419287566,1775113120541,-359.0,0.00043808,120]
[419287567,1775113120591,-359.0,0.00043808,120]
[419287569,1775113120642,-359.0,0.00043808,120]
[419287570,1775113120695,-359.0,0.00043808,120]
[419287571,1775113120748,-359.0,0.00043808,120]
[419287572,1775113120801,-359.0,0.00043808,120]
[419287573,1775113120850,-359.0,0.00043808,120]
[419287574,1775113120902,-359.0,0.00043808,120]
[419287575,1775113120953,-359.0,0.00043808,120]
[419287576,1775113121004,-359.0,0.00043808,120]
[419287577,1775113121056,-359.0,0.00043808,120]
[419287578,1775113121108,-359.0,0.00043808,120]
[419287579,1775113121160,-359.0,0.00043808,120]
[419287580,1775113121210,-359.0,0.00043808,120]
[419287581,1775113121258,-359.0,0.00043808,120]
[419287582,1775113121307,-359.0,0.00043808,120]
[419287583,1775113121357,-359.0,0.00043808,120]
[419287584,1775113121411,-359.0,0.00043808,120]
[419287585,1775113121461,-359.0,0.00043808,120]
[419287586,1775113121512,-359.0,0.00043808,120]
[419287587,1775113121564,-359.0,0.00043808,120]
[419287588,1775113121616,-359.0,0.00043808,120]
[419287589,1775113121671,-359.0,0.00043808,120]
[419287590,1775113121722,-359.0,0.00043808,120]
[419287591,1775113121773,-359.0,0.00043808,120]
[419287592,1775113121827,-350.0,0.00043835,120]
[419287593,1775113121878,-500.0,0.00043835,120]
[419287594,1775113121931,-500.0,0.00043835,120]
[419287595,1775113121982,-500.0,0.00043835,120]
[419287596,1775113122034,-500.0,0.00043835,120]
[419287597,1775113122084,-500.0,0.00043835,120]
[419287598,1775113122135,-500.0,0.00043835,120]
[419287599,1775113122185,-531.36,0.00043835,120]
[419287600,1775113122239,-3000.0,0.00043835,120]
[419287601,1775113122291,-151.0,0.00043836,120]
[419287602,1775113122341,-151.0,0.00043836,120]
[419287603,1775113122391,-151.0,0.00043836,120]
[419287604,1775113122440,-151.0,0.00043836,120]
[419287605,1775113122489,-151.0,0.00043836,120]
[419287606,1775113122538,-151.0,0.00043836,120]
[419287607,1775113122589,-151.0,0.00043836,120]
[419287608,1775113122640,-151.0,0.00043836,120]
[419287609,1775113122690,-151.0,0.00043836,120]
[419287610,1775113122741,-151.0,0.00043836,120]
[419287611,1775113122791,-211.404841,0.00043836,120]
[419287612,1775113122841,-151.0,0.00043836,120]
[419287613,1775113122890,-151.0,0.00043836,120]
[419287614,1775113122938,-151.0,0.00043836,120]
[419287615,1775113122988,-151.0,0.00043836,120]
[419287616,1775113123040,-151.0,0.00043836,120]
[419287617,1775113123094,-151.0,0.00043836,120]
[419287618,1775113123147,-151.0,0.00043836,120]
[419287619,1775113123201,-151.0,0.00043836,120]
[419287620,1775113123256,-151.0,0.00043836,120]
[419287621,1775113123310,-151.0,0.00043836,120]
[419287622,1775113123363,-151.0,0.00043836,120]
[419287623,1775113123416,-151.0,0.00043836,120]
[419287624,1775113123469,-151.0,0.00043836,120]
[419287625,1775113123523,-151.0,0.00043836,120]
[419287626,1775113123578,-151.0,0.00043836,120]
[419287627,1775113123632,-170.347087,0.00043836,120]
[419287628,1775113123684,-151.0,0.00043836,60]
[419287629,1775113123735,-151.0,0.00043836,60]
[419287630,1775113123790,-151.0,0.00043836,60]
[419287631,1775113123844,-151.0,0.00043836,60]
[419287632,1775113123898,-151.0,0.00043836,60]
[419287633,1775113123952,-151.0,0.00043836,60]
[419287634,1775113124007,-151.0,0.00043836,60]
[419287635,1775113124058,-156.112811,0.00043836,120]
[419287636,1775113124108,-151.0,0.00043836,60]
[419287637,1775113124159,-156.112811,0.00043836,120]
[419287638,1775113124210,-151.0,0.00043836,60]
[419287639,1775113124260,-156.112811,0.00043836,120]
[419287640,1775113124312,-151.0,0.00043836,60]
[419287641,1775113124361,-156.112811,0.00043836,120]
[419287642,1775113124408,-151.0,0.00043836,60]
[419287643,1775113124455,-156.112811,0.00043836,120]
[419287644,1775113124504,-283.574439,0.00043836,60]
[419287645,1775113124552,-156.112811,0.00043836,120]
[419287646,1775113124602,-156.112811,0.00043836,120]
[419287647,1775113124651,-156.112811,0.00043836,120]
[419287648,1775113124701,-156.112811,0.00043836,120]
[419287649,1775113124751,-151.973615,0.00043836,120]
[419287650,1775113124802,-156.112811,0.00043836,120]
[419287651,1775113124851,-156.112811,0.00043836,120]
[419287652,1775113124902,-156.112811,0.00043836,120]
[419287653,1775113124951,-156.112811,0.00043836,120]
[419287654,1775113124999,-156.112811,0.00043836,120]
[419287655,1775113125051,-156.112811,0.00043836,120]
[419287656,1775113125101,-156.112811,0.00043836,120]
[419287657,1775113125151,-156.112811,0.00043836,120]
[419287658,1775113125200,-156.112811,0.00043836,120]
[419287659,1775113125249,-156.112811,0.00043836,120]
[419287660,1775113125298,-156.112811,0.00043836,120]
[419287661,1775113125347,-151.0,0.00043836,120]
[419287662,1775113125396,-151.0,0.00043836,120]
[419287663,1775113125444,-151.0,0.00043836,120]
[419287664,1775113125493,-151.0,0.00043836,120]
[419287665,1775113125543,-151.0,0.00043836,120]
[419287666,1775113125591,-151.0,0.00043836,120]
[419287667,1775113125640,-151.0,0.00043836,120]
[419287668,1775113125691,-159.458866,0.00043836,120]